fUST/lending_fUST_20240410
["ID","MTS","AMOUNT","RATE_DAILY","PERIOD"]
[322048982,1712723440375,-500.0,0.00022458,2]
[322048983,1712723440387,-500.0,0.00022458,2]
[322048984,1712723440395,-500.0,0.00022458,2]
[322048985,1712723440404,-500.0,0.00022458,2]
[322048986,1712723440413,-227.25168556,0.00022729,2]
[322048987,1712723440422,-434.26279419,0.00022729,2]
[322048988,1712723440432,-500.0,0.00022729,2]
[322048989,1712723440441,-500.0,0.0002273,2]
[322048990,1712723440450,-500.0,0.0002273,2]
[322048991,1712723440458,-500.0,0.0002273,2]
[322048992,1712723440467,-500.0,0.0002273,2]
[322048993,1712723440477,-500.0,0.0002273,2]
[322048994,1712723440486,-500.0,0.0002273,2]
[322048995,1712723440495,-500.0,0.0002273,2]
[322048996,1712723440504,-500.0,0.0002273,2]
[322048997,1712723440513,-500.0,0.0002273,2]
[322048999,1712723440522,-500.0,0.0002273,2]
[322049001,1712723440531,-500.0,0.0002273,2]
[322049003,1712723440540,-868.15,0.0002273,2]
[322049005,1712723440549,-500.0,0.0002273,2]
[322049007,1712723440558,-500.0,0.0002273,2]
[322049009,1712723440566,-500.0,0.0002273,2]
[322049010,1712723440576,-500.0,0.0002273,2]
[322049013,1712723440585,-500.0,0.0002273,2]
[322049015,1712723440595,-500.0,0.0002273,2]
[322049017,1712723440605,-500.0,0.0002273,2]
[322049018,1712723440614,-1584.78,0.0002273,2]
[322049020,1712723440623,-500.0,0.0002273,2]
[322049022,1712723440634,-500.0,0.0002273,2]
[322049024,1712723440644,-2815.48,0.0002273,2]
[322049027,1712723440653,-500.0,0.0002273,2]
[322049028,1712723440663,-501.01806855,0.0002273,2]
[322049031,1712723440673,-500.0,0.0002273,2]
[322049032,1712723440682,-500.0,0.0002273,2]
[322049034,1712723440692,-171.83381504,0.0002273,2]
[322049036,1712723440701,-595.86,0.0002273,2]
[322049039,1712723440711,-500.0,0.0002273,2]
[322049040,1712723440720,-500.0,0.0002273,2]
[322049042,1712723440729,-500.0,0.0002273,2]
[322049044,1712723440738,-1099.93,0.0002273,2]
[322049046,1712723440747,-500.0,0.0002273,2]
[322049048,1712723440757,-500.0,0.00022731,2]
[322049050,1712723440767,-518.71,0.00022731,2]
[322049051,1712723440776,-500.0,0.00022731,2]
[322049052,1712723440785,-500.0,0.00022731,2]
[322049053,1712723440794,-500.0,0.00022732,2]
[322049054,1712723440802,-212.11918038,0.00022732,2]
[322049055,1712723440811,-500.0,0.00022732,2]
[322049056,1712723440821,-500.0,0.00022732,2]
[322049057,1712723440830,-500.0,0.00022732,2]
[322049058,1712723440839,-661.14,0.00022732,2]
[322049059,1712723440849,-518.35,0.00022732,2]
[322049060,1712723440858,-500.0,0.00022732,2]
[322049061,1712723440867,-500.0,0.00022732,2]
[322049062,1712723440876,-500.0,0.00022732,2]
[322049063,1712723440886,-500.0,0.00022732,2]
[322049064,1712723440895,-622.78627392,0.00022732,2]
[322049065,1712723440903,-644.21022522,0.00022732,2]
[322049066,1712723440912,-500.0,0.00023003,2]
[322049067,1712723440923,-309.96650403,0.00023004,2]
[322049068,1712723440932,-500.0,0.00023004,2]
[322049069,1712723440941,-500.0,0.00023004,2]
[322049070,1712723440950,-500.0,0.00023004,2]
[322049071,1712723440960,-500.0,0.00023004,2]
[322049072,1712723440969,-500.0,0.00023004,2]
[322049073,1712723440979,-500.0,0.00023004,2]
[322049074,1712723440989,-500.0,0.00023004,2]
[322049075,1712723440998,-432.81200396,0.00023004,2]
[322049076,1712723441008,-500.0,0.00023004,2]
[322049077,1712723441017,-500.0,0.00023004,2]
[322049078,1712723441026,-868.15,0.00023004,2]
[322049079,1712723441035,-500.0,0.00023004,2]
[322049080,1712723441045,-500.0,0.00023004,2]
[322049081,1712723441054,-500.0,0.00023004,2]
[322049082,1712723441063,-500.0,0.00023004,2]
[322049083,1712723441073,-500.0,0.00023004,2]
[322049084,1712723441082,-1584.78,0.00023004,2]
[322049085,1712723441091,-500.0,0.00023004,2]
[322049086,1712723441101,-500.0,0.00023004,2]
[322049087,1712723441110,-2815.48,0.00023004,2]
[322049089,1712723441123,-500.0,0.00023004,2]
[322049091,1712723441133,-500.0,0.00023004,2]
[322049093,1712723441142,-500.0,0.00023004,2]
[322049095,1712723441151,-595.86,0.00023004,2]
[322049096,1712723441162,-500.0,0.00023004,2]
[322049097,1712723441170,-500.0,0.00023004,2]
[322049098,1712723441181,-1099.93,0.00023004,2]
[322049099,1712723441189,-500.0,0.00023004,2]
[322049100,1712723441200,-500.0,0.00023005,2]
[322049101,1712723441210,-518.71,0.00023005,2]
[322049102,1712723441219,-500.0,0.00023005,2]
[322049103,1712723441228,-500.0,0.00023005,2]
[322049104,1712723441237,-27313.40873317,0.00023006,2]
[322049105,1712723441247,-500.0,0.00023006,2]
[322049106,1712723441256,-500.0,0.00023006,2]
[322049107,1712723441265,-500.0,0.00023006,2]
[322049108,1712723441276,-661.14,0.00023006,2]
[322049109,1712723441286,-518.35,0.00023006,2]
[322049110,1712723441295,-500.0,0.00023006,2]
[322049111,1712723441304,-500.0,0.00023006,2]
[322049112,1712723441315,-500.0,0.00023006,2]
[322049113,1712723441324,-500.0,0.00023006,2]
[322049114,1712723441333,-344.4208962,0.00023119,2]
[322049115,1712723441343,-500.0,0.00023277,2]
[322049116,1712723441352,-500.0,0.00023278,2]
[322049117,1712723441361,-500.0,0.00023278,2]
[322049118,1712723441370,-500.0,0.00023278,2]
[322049119,1712723441380,-500.0,0.00023278,2]
[322049120,1712723441390,-500.0,0.00023278,2]
[322049121,1712723441399,-608.79359272,0.00023278,2]
[322049122,1712723441409,-500.0,0.00023278,2]
[322049123,1712723441419,-500.0,0.00023278,2]
[322049124,1712723441428,-500.0,0.00023278,2]
[322049125,1712723441437,-868.15,0.00023278,2]
[322049126,1712723441446,-500.0,0.00023278,2]
[322049127,1712723441455,-500.0,0.00023278,2]
[322049128,1712723441464,-500.0,0.00023278,2]
[322049129,1712723441473,-500.0,0.00023278,2]
[322049130,1712723441482,-500.0,0.00023278,2]
[322049131,1712723441491,-1584.78,0.00023278,2]
[322049132,1712723441500,-500.0,0.00023278,2]
[322049133,1712723441509,-500.0,0.00023278,2]
[322049134,1712723441518,-2815.48,0.00023278,2]
[322049135,1712723441527,-500.0,0.00023278,2]
[322049136,1712723441536,-634.7734702,0.00023278,2]
[322049137,1712723441545,-500.0,0.00023278,2]
[322049138,1712723441554,-595.86,0.00023278,2]
[322049139,1712723441563,-642.28,0.00023278,2]
[322049140,1712723441572,-500.0,0.00023278,2]
[322049141,1712723441582,-1099.93,0.00023278,2]
[322049142,1712723441590,-500.0,0.00023278,2]
[322049143,1712723441599,-500.0,0.00023279,2]
[322049144,1712723441609,-518.71,0.00023279,2]
[322049145,1712723441618,-500.0,0.00023279,2]
[322049146,1712723441628,-500.0,0.00023279,2]
[322049147,1712723441638,-500.0,0.0002328,2]
[322049148,1712723441647,-500.0,0.0002328,2]
[322049149,1712723441656,-661.14,0.0002328,2]
[322049150,1712723441666,-518.35,0.0002328,2]
[322049151,1712723441676,-500.0,0.0002328,2]
[322049152,1712723441686,-500.0,0.0002328,2]
[322049153,1712723441694,-500.0,0.0002328,2]
[322049154,1712723441704,-2000.0,0.00023452,2]
[322049155,1712723441715,-500.0,0.00023551,2]
[322049156,1712723441726,-500.0,0.00023552,2]
[322049157,1712723441735,-413.87257857,0.00023552,2]
[322049158,1712723441745,-500.0,0.00023552,2]
[322049159,1712723441755,-500.0,0.00023552,2]
[322049160,1712723441765,-500.0,0.00023552,2]
[322049161,1712723441774,-500.0,0.00023552,2]
[322049162,1712723441783,-500.0,0.00023552,2]
[322049163,1712723441793,-500.0,0.00023552,2]
[322049164,1712723441802,-868.15,0.00023552,2]
[322049165,1712723441811,-500.0,0.00023552,2]
[322049166,1712723441821,-500.0,0.00023552,2]
[322049167,1712723441831,-500.0,0.00023552,2]
[322049168,1712723441840,-500.0,0.00023552,2]
[322049169,1712723441850,-412.18,0.00023552,2]
[322049170,1712723441859,-1584.78,0.00023552,2]
[322049171,1712723441869,-500.0,0.00023552,2]
[322049172,1712723441880,-500.0,0.00023552,2]
[322049173,1712723441890,-2815.48,0.00023552,2]
[322049174,1712723441899,-500.0,0.00023552,2]
[322049175,1712723441908,-500.0,0.00023552,2]
[322049176,1712723441917,-595.86,0.00023552,2]
[322049177,1712723441926,-500.0,0.00023552,2]
[322049178,1712723441935,-1099.93,0.00023552,2]
[322049179,1712723441945,-500.0,0.00023552,2]
[322049180,1712723441953,-518.71,0.00023553,2]
[322049181,1712723441963,-284.45404807,0.00023553,2]
[322049182,1712723441972,-608.55204387,0.00023553,2]
[322049183,1712723441981,-500.0,0.00023554,2]
[322049184,1712723441990,-500.0,0.00023554,2]
[322049185,1712723441999,-661.14,0.00023554,2]
[322049186,1712723442008,-518.35,0.00023554,2]
[322049187,1712723442018,-500.0,0.00023554,2]
[322049188,1712723442027,-500.0,0.00023554,2]
[322049189,1712723442039,-151.0,0.00023554,2]
[322049190,1712723442049,-500.0,0.00023554,2]
[322049191,1712723442059,-151.0,0.00023554,2]
[322049192,1712723442069,-151.0,0.00023554,2]
[322049193,1712723442080,-151.0,0.00023554,2]
[322049194,1712723442090,-4967.976923,0.00023554,2]
[322049195,1712723442100,-4967.976923,0.00023554,2]
[322049196,1712723442112,-151.0,0.00023554,2]
[322049197,1712723442124,-500.0,0.00023825,2]
[322049198,1712723442135,-500.0,0.00023826,2]
[322049199,1712723442145,-500.0,0.00023826,2]
[322049200,1712723442155,-500.0,0.00023826,2]
[322049201,1712723442165,-500.0,0.00023826,2]
[322049202,1712723442176,-500.0,0.00023826,2]
[322049203,1712723442186,-479.92,0.00023826,2]
[322049204,1712723442196,-500.0,0.00023826,2]
[322049205,1712723442205,-868.15,0.00023826,2]
[322049206,1712723442215,-487.541267,0.00023826,2]
[322049207,1712723442224,-487.541267,0.00023826,2]
[322049208,1712723442234,-500.0,0.00023826,2]
[322049209,1712723442243,-151.0,0.00023826,2]
[322049210,1712723442252,-500.0,0.00023826,2]
[322049211,1712723442262,-500.0,0.00023826,2]
[322049212,1712723442271,-151.0,0.00023826,2]
[322049213,1712723442280,-500.0,0.00023826,2]
[322049214,1712723442289,-151.0,0.00023826,2]
[322049215,1712723442299,-151.0,0.00023826,2]
[322049216,1712723442308,-1584.78,0.00023826,2]
[322049217,1712723442317,-500.0,0.00023826,2]
[322049218,1712723442326,-2815.48,0.00023826,2]
[322049219,1712723442335,-500.0,0.00023826,2]
[322049220,1712723442344,-500.0,0.00023826,2]
[322049221,1712723442354,-151.0,0.00023826,2]
[322049222,1712723442363,-595.86,0.00023826,2]
[322049223,1712723442372,-500.0,0.00023826,2]
[322049224,1712723442382,-151.0,0.00023826,2]
[322049225,1712723442391,-151.0,0.00023826,2]
[322049226,1712723442400,-1099.93,0.00023826,2]
[322049227,1712723442409,-189.94811751,0.00023826,2]
[322049228,1712723442418,-518.71,0.00023827,2]
[322049229,1712723442427,-500.0,0.00023828,2]
[322049230,1712723442436,-500.0,0.00023828,2]
[322049231,1712723442446,-661.14,0.00023828,2]
[322049232,1712723442455,-518.35,0.00023828,2]
[322049233,1712723442464,-500.0,0.00023828,2]
[322049234,1712723442473,-500.0,0.00023828,2]
[322049235,1712723442482,-500.0,0.00023828,2]
[322049236,1712723442491,-344.4208962,0.00023879,2]
[322049237,1712723442500,-311.87166463,0.00023946,2]
[322049238,1712723442509,-420.0,0.00024099,2]
[322049239,1712723442519,-500.0,0.00024099,2]
[322049240,1712723442528,-500.0,0.000241,2]
[322049241,1712723442537,-500.0,0.000241,2]
[322049242,1712723442546,-500.0,0.000241,2]
[322049243,1712723442555,-500.0,0.000241,2]
[322049244,1712723442564,-500.0,0.000241,2]
[322049245,1712723442574,-500.0,0.000241,2]
[322049246,1712723442583,-868.15,0.000241,2]
[322049247,1712723442592,-500.0,0.000241,2]
[322049248,1712723442601,-500.0,0.000241,2]
[322049249,1712723442610,-500.0,0.000241,2]
[322049250,1712723442618,-500.0,0.000241,2]
[322049251,1712723442627,-1584.78,0.000241,2]
[322049252,1712723442637,-403.94,0.000241,2]
[322049253,1712723442647,-2815.48,0.000241,2]
[322049254,1712723442656,-500.0,0.000241,2]
[322049255,1712723442665,-558.18,0.000241,2]
[322049256,1712723442674,-595.86,0.000241,2]
[322049257,1712723442683,-500.0,0.000241,2]
[322049258,1712723442692,-1099.93,0.000241,2]
[322049259,1712723442701,-518.71,0.00024101,2]
[322049260,1712723442710,-500.0,0.00024102,2]
[322049261,1712723442719,-500.0,0.00024102,2]
[322049262,1712723442728,-661.14,0.00024102,2]
[322049263,1712723442737,-518.35,0.00024102,2]
[322049264,1712723442746,-500.0,0.00024102,2]
[322049266,1712723442846,-500.0,0.00024102,2]
[322049267,1712723442856,-500.0,0.00024102,2]
[322049268,1712723442865,-627.68674815,0.00024331,2]
[322049269,1712723442874,-151.0,0.00024331,2]
[322049270,1712723442884,-151.0,0.00024331,2]
[322049271,1712723442893,-151.0,0.00024331,2]
[322049272,1712723442902,-151.0,0.00024331,2]
[322049273,1712723442911,-4967.976923,0.00024331,2]
[322049274,1712723442920,-4967.976923,0.00024331,2]
[322049275,1712723442930,-244.651652,0.00024331,2]
[322049276,1712723442939,-254.84,0.00024373,2]
[322049277,1712723442948,-500.0,0.00024374,2]
[322049278,1712723442958,-500.0,0.00024374,2]
[322049279,1712723442967,-500.0,0.00024374,2]
[322049280,1712723442975,-500.0,0.00024374,2]
[322049281,1712723442984,-500.0,0.00024374,2]
[322049282,1712723442993,-500.0,0.00024374,2]
[322049283,1712723443002,-868.15,0.00024374,2]
[322049284,1712723443011,-500.0,0.00024374,2]
[322049285,1712723443020,-500.0,0.00024374,2]
[322049286,1712723443030,-500.0,0.00024374,2]
[322049287,1712723443039,-500.0,0.00024374,2]
[322049288,1712723443048,-1584.78,0.00024374,2]
[322049289,1712723443057,-2815.48,0.00024374,2]
[322049290,1712723443066,-500.0,0.00024374,2]
[322049291,1712723443075,-151.0,0.00024374,2]
[322049292,1712723443085,-595.86,0.00024374,2]
[322049293,1712723443094,-500.0,0.00024374,2]
[322049294,1712723443103,-213.63436,0.00024374,2]
[322049296,1712723443115,-1099.93,0.00024374,2]
[322049298,1712723443124,-518.71,0.00024375,2]
[322049300,1712723443134,-151.0,0.00024375,2]
[322049302,1712723443143,-2612.22,0.00024376,2]
[322049304,1712723443152,-307.06,0.00024376,2]
[322049306,1712723443162,-500.0,0.00024376,2]
[322049308,1712723443171,-487.541267,0.00024376,2]
[322049310,1712723443181,-487.541267,0.00024376,2]
[322049312,1712723443190,-151.0,0.00024376,2]
[322049314,1712723443199,-242.992108,0.00024376,2]
[322049316,1712723443209,-661.14,0.00024376,2]
[322049317,1712723443218,-518.35,0.00024376,2]
[322049318,1712723443227,-500.0,0.00024376,2]
[322049319,1712723443236,-151.0,0.00024376,2]
[322049320,1712723443245,-500.0,0.00024376,2]
[322049321,1712723443255,-151.0,0.00024376,2]
[322049322,1712723443263,-280.620548,0.00024377,2]
[322049323,1712723443273,-151.0,0.00024377,2]
[322049324,1712723443282,-286.045705,0.00024377,2]
[322049325,1712723443291,-420.0,0.00024399,2]
[322049326,1712723443301,-151.0,0.00024627,2]
[322049327,1712723443310,-2344.96290396,0.00024627,2]
[322049328,1712723443320,-344.4208962,0.0002464,2]
[322049329,1712723443330,-500.0,0.00024648,2]
[322049330,1712723443340,-500.0,0.00024648,2]
[322049331,1712723443349,-592.79153774,0.00024648,2]
[322049332,1712723443359,-429.20825194,0.00024648,2]
[322049333,1712723443369,-500.0,0.00024648,2]
[322049334,1712723443378,-500.0,0.00024648,2]
[322049335,1712723443388,-868.15,0.00024648,2]
[322049336,1712723443397,-509.83864137,0.00024648,2]
[322049337,1712723443406,-500.0,0.00024648,2]
[322049338,1712723443415,-500.0,0.00024648,2]
[322049339,1712723443424,-500.0,0.00024648,2]
[322049340,1712723443434,-1584.78,0.00024648,2]
[322049341,1712723443443,-2815.48,0.00024648,2]
[322049342,1712723443452,-500.0,0.00024648,2]
[322049343,1712723443461,-595.86,0.00024648,2]
[322049345,1712723443470,-500.0,0.00024648,2]
[322049346,1712723443479,-1099.93,0.00024648,2]
[322049347,1712723443489,-151.0,0.00024649,2]
[322049348,1712723443498,-151.0,0.00024649,2]
[322049349,1712723443507,-518.71,0.00024649,2]
[322049350,1712723443516,-155.045773,0.0002465,2]
[322049351,1712723443525,-151.0,0.0002465,2]
[322049353,1712723443534,-151.719355,0.0002465,2]
[322049355,1712723443543,-2612.22,0.0002465,2]
[322049357,1712723443552,-562.38731302,0.0002465,2]
[322049359,1712723443561,-661.14,0.0002465,2]
[322049361,1712723443570,-518.35,0.0002465,2]
[322049363,1712723443579,-500.0,0.0002465,2]
[322049365,1712723443588,-626.98,0.0002465,2]
[322049366,1712723443598,-151.0,0.0002465,2]
[322049367,1712723443607,-162.714672,0.0002465,2]
[322049368,1712723443616,-153.243674,0.0002465,2]
[322049369,1712723443625,-151.0,0.0002465,2]
[322049370,1712723443636,-4967.976923,0.0002465,2]
[322049371,1712723443645,-4967.976923,0.0002465,2]
[322049372,1712723443654,-487.541267,0.00024891,2]
[322049373,1712723443663,-487.541267,0.00024891,2]
[322049374,1712723443672,-151.0,0.00024891,2]
[322049375,1712723443682,-171.145398,0.00024891,2]
[322049376,1712723443691,-500.0,0.00024922,2]
[322049377,1712723443700,-500.0,0.00024922,2]
[322049378,1712723443709,-500.0,0.00024922,2]
[322049379,1712723443719,-500.0,0.00024922,2]
[322049380,1712723443728,-868.15,0.00024922,2]
[322049381,1712723443737,-500.0,0.00024922,2]
[322049382,1712723443746,-500.0,0.00024922,2]
[322049383,1712723443756,-500.0,0.00024922,2]
[322049384,1712723443765,-1584.78,0.00024922,2]
[322049385,1712723443774,-2815.48,0.00024922,2]
[322049386,1712723443783,-500.0,0.00024922,2]
[322049387,1712723443792,-595.86,0.00024922,2]
[322049388,1712723443801,-500.0,0.00024922,2]
[322049389,1712723443811,-1099.93,0.00024922,2]
[322049390,1712723443820,-518.71,0.00024923,2]
[322049391,1712723443829,-151.0,0.00024924,2]
[322049392,1712723443840,-151.674312,0.00024924,2]
[322049393,1712723443849,-2612.22,0.00024924,2]
[322049394,1712723443859,-661.14,0.00024924,2]
[322049395,1712723443868,-518.35,0.00024924,2]
[322049396,1712723443878,-500.0,0.00024924,2]
[322049397,1712723443888,-151.0,0.00024924,2]
[322049398,1712723443897,-151.0,0.00024924,2]
[322049399,1712723443907,-7576.83394587,0.00025,7]
[322049400,1712723443924,-24679.53635869,0.00025,7]
[322049401,1712723443936,-590.09953903,0.00025,7]
[322049402,1712723443945,-220.22760662,0.00025,2]
[322049403,1712723443955,-151.0,0.00025,2]
[322049404,1712723443965,-151.0,0.00025,2]
[322049405,1712723443974,-151.0,0.00025,2]
[322049406,1712723443983,-151.0,0.00025,2]
[322049407,1712723443993,-487.541267,0.00025,2]
[322049408,1712723444002,-252.32423367,0.00025,2]
[322049409,1712723444019,-503.93297484,0.00022182,2]
[322049410,1712723444028,-235.21703333,0.00025,2]
[322049411,1712723444038,-151.0,0.00025,2]
[322049412,1712723444047,-151.0,0.00025,2]
[322049413,1712723444057,-189.300755,0.00025,2]
[322049414,1712723444066,-151.0,0.00025,2]
[322049415,1712723444075,-151.0,0.00025,2]
[322049416,1712723444085,-2298.29626783,0.00025,2]
[322049417,1712723444107,-500.0,0.00022182,2]
[322049418,1712723444117,-504.31633005,0.00022183,2]
[322049419,1712723444129,-1552.050543,0.00025,2]
[322049420,1712723444188,-1117.63011217,0.00025,2]
[322049421,1712723444199,-4967.976923,0.00025,2]
[322049422,1712723444210,-500.0,0.00025196,2]
[322049423,1712723444219,-331.99296483,0.00025196,2]
[322049444,1712723446518,-500.0,0.00022182,2]
[322049445,1712723446529,-470.87276791,0.00022456,2]
[322049446,1712723446541,-127.49723209,0.00022456,2]
[322049447,1712723446551,-168.00703517,0.00025196,2]
[322049448,1712723446560,-500.0,0.00025196,2]
[322049449,1712723446569,-500.0,0.00025196,2]
[322049450,1712723446579,-868.15,0.00025196,2]
[322049451,1712723446588,-500.0,0.00025196,2]
[322049452,1712723446597,-500.0,0.00025196,2]
[322049453,1712723446607,-1584.78,0.00025196,2]
[322049454,1712723446616,-260.62693363,0.00025196,2]
[322049455,1712723446628,-422.22153081,0.00025196,2]
[322049456,1712723446641,-2132.63153556,0.00025196,2]
[322049457,1712723446651,-500.0,0.00025196,2]
[322049458,1712723446660,-407.76417186,0.00025196,2]
[322049459,1712723446671,-188.09582814,0.00025196,2]
[322049460,1712723446682,-500.0,0.00025196,2]
[322049461,1712723446691,-142.54367186,0.00025196,2]
[322049462,1712723472738,12075.97434918,0.00020741,2]
[322049467,1712723595300,14483.54115546,0.00022222,3]
[322049474,1712723651336,14968.2810375,0.0002223,4]
[322049501,1712723854719,400.0,0.00021,3]
[322049516,1712724117207,155.94198537,0.00020937,2]
[322049525,1712724319918,6397.1139041,0.00020052,2]
[322049577,1712724476495,3736.78008316,0.00021001,2]
[322049578,1712724484595,2121.71958913,0.00021001,2]
[322049579,1712724484994,181.0843021,0.00021001,2]
[322049580,1712724487126,1866.41705732,0.00021001,2]
[322049581,1712724490897,211.46315052,0.00021001,2]
[322049582,1712724492349,1617.59849486,0.00021001,2]
[322049583,1712724492428,470.13868753,0.00021001,2]
[322049584,1712724498213,1087.50404334,0.00021001,2]
[322049585,1712724516225,407.79245075,0.00021001,2]
[322049586,1712724562411,161.26446166,0.00021001,2]
[322049587,1712724621175,156.01233393,0.00021,2]
[322049594,1712724632580,-155.94198528,0.00021644,2]
[322049595,1712724632590,-272.88770656,0.00021816,2]
[322049596,1712724632599,-61.67032476,0.00021914,2]
[322049597,1712724632636,-919.10156984,0.00021914,2]
[322049598,1712724632648,-1599.88452221,0.00021914,2]
[322049599,1712724632657,-300.0,0.00021915,2]
[322049601,1712724632667,-134.04854856,0.00021915,2]
[322049603,1712724632692,-165.95145144,0.00021915,2]
[322049605,1712724632706,-22751.29699705,0.00021916,2]
[322049607,1712724632756,-500.0,0.00021917,2]
[322049608,1712724632765,-500.0,0.00021917,2]
[322049610,1712724632775,-500.0,0.00021917,2]
[322049611,1712724632786,-502.88280263,0.00021917,2]
[322049612,1712724632795,-797.37,0.00021917,2]
[322049613,1712724632805,-500.0,0.00021917,2]
[322049614,1712724632814,-507.60377523,0.00021917,2]
[322049615,1712724632823,-500.0,0.00021917,2]
[322049616,1712724632832,-500.0,0.00021917,2]
[322049617,1712724632842,-564.48509668,0.00021917,2]
[322049618,1712724632851,-150.17866201,0.00021917,2]
[322049619,1712724632861,-500.0,0.00021917,2]
[322049620,1712724632870,-500.0,0.00021917,2]
[322049621,1712724632880,-500.0,0.00021917,2]
[322049622,1712724632890,-500.0,0.00021917,2]
[322049623,1712724632899,-500.0,0.00021917,2]
[322049624,1712724632909,-546.21,0.00021917,2]
[322049625,1712724632918,-500.0,0.00021917,2]
[322049626,1712724632928,-182.96331992,0.0002207,2]
[322049627,1712724632938,-312.70188349,0.00022083,2]
[322049628,1712724632948,-500.0,0.00022174,2]
[322049629,1712724632958,-500.0,0.00022175,2]
[322049630,1712724632969,-500.0,0.00022175,2]
[322049631,1712724632979,-201.85256798,0.00022175,2]
[322049632,1712724632989,-500.0,0.00022175,2]
[322049633,1712724633000,-500.0,0.00022175,2]
[322049634,1712724633010,-500.0,0.00022175,2]
[322049635,1712724633020,-500.0,0.00022175,2]
[322049636,1712724633031,-500.0,0.00022175,2]
[322049637,1712724633041,-500.0,0.00022175,2]
[322049638,1712724633061,-500.0,0.00022175,2]
[322049639,1712724633072,-500.0,0.00022175,2]
[322049640,1712724633082,-500.0,0.00022175,2]
[322049641,1712724633093,-500.0,0.00022175,2]
[322049642,1712724633104,-500.0,0.00022175,2]
[322049643,1712724633114,-500.0,0.00022175,2]
[322049644,1712724633124,-500.0,0.00022175,2]
[322049645,1712724633134,-500.0,0.00022175,2]
[322049646,1712724633144,-500.0,0.00022175,2]
[322049647,1712724633155,-500.0,0.00022175,2]
[322049648,1712724633166,-500.0,0.00022175,2]
[322049649,1712724633176,-362.90591462,0.00022175,2]
[322049650,1712724633186,-500.0,0.00022175,2]
[322049651,1712724633196,-500.0,0.00022175,2]
[322049652,1712724633207,-500.0,0.00022175,2]
[322049653,1712724633217,-500.0,0.00022175,2]
[322049654,1712724633228,-500.0,0.00022175,2]
[322049656,1712724633239,-504.95897543,0.00022175,2]
[322049657,1712724633249,-1619.4,0.00022175,2]
[322049658,1712724633260,-2591.52,0.00022175,2]
[322049659,1712724633269,-500.0,0.00022175,2]
[322049660,1712724633281,-500.0,0.00022175,2]
[322049661,1712724633291,-500.0,0.00022175,2]
[322049662,1712724633301,-500.0,0.00022175,2]
[322049663,1712724633311,-500.0,0.00022175,2]
[322049664,1712724633322,-500.0,0.00022175,2]
[322049665,1712724633332,-500.0,0.00022175,2]
[322049666,1712724633342,-1048.16,0.00022175,2]
[322049667,1712724633353,-500.0,0.00022175,2]
[322049668,1712724633364,-500.0,0.00022175,2]
[322049669,1712724633374,-500.0,0.00022175,2]
[322049670,1712724633385,-1011.90519044,0.00022177,2]
[322049671,1712724633396,-1360.874575,0.0002218,2]
[322049672,1712724633405,-502.68102136,0.00022182,2]